bitfinex/quotes_BTCUSD_20250610
["timestamp","ask_amount","ask_price","bid_price","bid_amount"]
[1749536609824,0.70964628,109380.0,109370.0,0.62441412]
[1749536610006,0.70964628,109380.0,109370.0,0.64148729]
[1749536610188,0.70964628,109380.0,109370.0,0.64148738]
[1749536610390,0.70964628,109380.0,109370.0,0.64788967]
[1749536611166,0.70964628,109380.0,109370.0,0.63081626]
[1749536611389,0.70964628,109380.0,109370.0,0.64148653]
[1749536611599,0.70964628,109380.0,109370.0,0.6478887]
[1749536611799,0.70964628,109380.0,109370.0,0.64148656]
[1749536612016,0.70964628,109380.0,109370.0,0.64788872]
[1749536612437,0.70964628,109380.0,109370.0,0.63081628]
[1749536612645,0.70964628,109380.0,109370.0,0.64148398]
[1749536612855,0.70964628,109380.0,109370.0,0.64788518]
[1749536613083,0.70964628,109380.0,109370.0,0.64148398]
[1749536613562,0.70964628,109380.0,109370.0,0.6478852]
[1749536613787,0.70964628,109380.0,109370.0,0.5284052]
[1749536614001,0.70964628,109380.0,109370.0,0.6321452]
[1749536614180,0.70964628,109380.0,109370.0,0.63214519]
[1749536614383,0.20384913,109380.0,109370.0,0.62574404]
[1749536614598,0.70964628,109380.0,109370.0,0.61507534]
[1749536614805,0.20384913,109380.0,109370.0,0.62574404]
[1749536615069,0.70964628,109380.0,109370.0,0.63214523]
[1749536615296,0.70964628,109380.0,109370.0,0.63214565]
[1749536615712,0.70964628,109380.0,109370.0,0.63214567]
[1749536615911,0.70964628,109380.0,109370.0,0.59877532]
[1749536616124,0.70964628,109380.0,109370.0,0.59237412]
[1749536616346,0.70964628,109380.0,109370.0,0.61584587]
[1749536616567,0.70964628,109380.0,109370.0,0.63129516]
[1749536616794,0.70964628,109380.0,109370.0,0.63769641]
[1749536617003,0.70964628,109380.0,109370.0,0.61422479]
[1749536617214,0.70964628,109380.0,109370.0,0.63769641]
[1749536617412,0.70964628,109380.0,109370.0,0.63769546]
[1749536618474,0.70964628,109380.0,109370.0,0.62062578]
[1749536618723,0.70964628,109380.0,109370.0,0.63129412]
[1749536618958,0.70964628,109380.0,109370.0,0.63769509]
[1749536619464,0.70964628,109380.0,109370.0,0.63769596]
[1749536619670,0.70964628,109380.0,109370.0,0.63769647]
[1749536619877,0.70964628,109380.0,109370.0,0.63769651]
[1749536620089,0.70964628,109380.0,109370.0,0.62062617]
[1749536620305,0.70964628,109380.0,109370.0,0.61422479]
[1749536620532,0.70964628,109380.0,109370.0,0.63769653]
[1749536621081,0.70964628,109380.0,109370.0,0.51185515]
[1749536621280,0.70964628,109380.0,109370.0,0.63769941]
[1749536621608,0.70964628,109380.0,109370.0,0.63129738]
[1749536621811,0.70964628,109380.0,109370.0,0.49478479]
[1749536622006,0.70964628,109380.0,109370.0,0.6312974]
[1749536622214,0.70964628,109380.0,109370.0,0.63769963]
[1749536622442,0.20384913,109380.0,109370.0,0.63769963]
[1749536622651,0.70964628,109380.0,109370.0,0.63770195]
[1749536622898,0.70964628,109380.0,109370.0,0.66980195]
[1749536623190,0.70964628,109380.0,109370.0,0.65360277]
[1749536623431,1.24734343,109380.0,109370.0,0.49478479]
[1749536623650,1.86914884,109380.0,109370.0,0.4936265]
[1749536623857,1.86914884,109380.0,109370.0,0.53007346]
[1749536624067,1.36335169,109380.0,109370.0,0.56140018]
[1749536624481,1.36335169,109380.0,109370.0,0.56140002]
[1749536624884,1.45787169,109380.0,109370.0,0.56140002]
[1749536625098,1.45787169,109380.0,109370.0,0.5549942]
[1749536625273,1.45787169,109380.0,109370.0,0.54431724]
[1749536625474,1.45787169,109380.0,109370.0,0.54431725]
[1749536625807,1.45787169,109380.0,109370.0,0.54431726]
[1749536626010,1.45787169,109380.0,109370.0,0.56139953]
[1749536626213,1.45787169,109380.0,109370.0,0.54431725]
[1749536626635,1.45787169,109380.0,109370.0,0.5613986]
[1749536626811,1.45787169,109380.0,109370.0,0.56140169]
[1749536627015,1.45787169,109380.0,109370.0,0.5379114]
[1749536627378,1.45787169,109380.0,109370.0,0.1379114]
[1749536627583,1.45787169,109380.0,109370.0,0.15499558]
[1749536627780,1.45787169,109380.0,109370.0,0.56140214]
[1749536627988,1.45787169,109380.0,109370.0,0.5379114]
[1749536628192,1.45787169,109380.0,109370.0,0.56140207]
[1749536628390,1.45787169,109380.0,109370.0,0.56140215]
[1749536628636,1.45787169,109380.0,109370.0,0.561402]
[1749536629062,1.45787169,109380.0,109370.0,0.54431794]
[1749536629212,1.45787169,109380.0,109370.0,0.54431934]
[1749536629417,1.45787169,109380.0,109370.0,0.5379114]
[1749536629616,1.45787169,109380.0,109370.0,0.5614102]
[1749536630165,1.45787169,109380.0,109370.0,0.56140912]
[1749536630378,1.45787169,109380.0,109370.0,0.54431908]
[1749536630573,1.45787169,109380.0,109370.0,0.56140624]
[1749536630796,1.45787169,109380.0,109370.0,0.55499855]
[1749536631005,1.45787169,109380.0,109370.0,0.5614062]
[1749536631149,1.45787169,109380.0,109370.0,0.56140563]
[1749536631543,1.45787169,109380.0,109370.0,0.56140511]
[1749536631748,1.45787169,109380.0,109370.0,0.55499774]
[1749536631956,1.45787169,109380.0,109370.0,0.56140508]
[1749536632190,1.45787169,109380.0,109370.0,0.55499765]
[1749536632392,1.45787169,109380.0,109370.0,0.56140484]
[1749536632594,1.45787169,109380.0,109370.0,0.55499756]
[1749536632840,1.45787169,109380.0,109370.0,0.56140436]
[1749536633061,1.45787169,109380.0,109370.0,0.5379114]
[1749536633285,1.45787169,109380.0,109370.0,0.56140414]
[1749536633505,1.45787169,109380.0,109370.0,0.56140051]
[1749536633713,1.45787169,109380.0,109370.0,0.55499439]
[1749536633911,1.45787169,109380.0,109370.0,0.54431776]
[1749536634026,1.45787169,109380.0,109370.0,0.53648171]
[1749536634237,1.45787169,109380.0,109370.0,0.54427789]
[1749536634455,1.45787169,109380.0,109370.0,0.55495547]
[1749536634658,1.45787169,109380.0,109370.0,0.56136196]
[1749536635501,1.45787169,109380.0,109370.0,0.54427792]
[1749536635709,1.45787169,109380.0,109370.0,0.56135967]
[1749536635909,1.45787169,109380.0,109370.0,0.55495378]
[1749536636111,1.45787169,109380.0,109370.0,0.56135971]
[1749536636354,1.45787169,109380.0,109370.0,0.56135966]
[1749536637224,1.45787169,109380.0,109370.0,0.56135949]
[1749536637424,1.45787169,109380.0,109370.0,0.56135776]
[1749536637600,1.45787169,109380.0,109370.0,0.5378714]
[1749536637844,1.45787169,109380.0,109370.0,0.54427657]
[1749536638031,1.33145169,109380.0,109370.0,0.52491187]
[1749536638234,1.42593169,109380.0,109370.0,0.53991032]
[1749536638489,1.42593169,109380.0,109370.0,0.53991035]
[1749536638978,1.42593169,109380.0,109370.0,0.52491001]
[1749536639177,1.42593169,109380.0,109370.0,0.50783149]
[1749536639385,1.42593169,109380.0,109370.0,0.50783147]
[1749536639526,1.42593169,109380.0,109370.0,0.50783164]
[1749536639724,0.41433739,109380.0,109370.0,0.51850592]
[1749536639932,0.41433739,109380.0,109370.0,0.50783166]
[1749536640133,1.42593169,109380.0,109370.0,0.52491059]
[1749536640340,1.42593169,109380.0,109370.0,0.52491062]
[1749536640784,1.42593169,109380.0,109370.0,0.52491131]
[1749536640961,0.021,109380.0,109370.0,0.54920724]
[1749536641185,0.73935919,109380.0,109370.0,0.53853177]
[1749536641383,0.73707199,109380.0,109370.0,0.5556109]
[1749536641725,0.73707199,109380.0,109370.0,0.5556108]
[1749536642031,0.73707199,109380.0,109370.0,0.47747067]
[1749536642239,0.73707199,109380.0,109370.0,0.50095308]
[1749536642648,1.24286914,109380.0,109370.0,0.49454969]
[1749536642874,1.23372737,109380.0,109370.0,0.5009543]
[1749536643080,1.23372737,109380.0,109370.0,0.48387535]
[1749536643493,1.23372737,109380.0,109370.0,0.50095449]
[1749536643852,1.23372737,109380.0,109370.0,0.50095495]
[1749536644260,1.23372737,109380.0,109370.0,0.50095498]
[1749536644481,1.32816737,109380.0,109370.0,0.50095631]
[1749536644809,1.32816737,109380.0,109370.0,0.48387596]
[1749536645031,1.32816737,109380.0,109370.0,0.49455147]
[1749536645211,1.32816737,109380.0,109370.0,0.49455156]
[1749536645357,1.32816737,109380.0,109370.0,0.50095689]
[1749536645600,1.31902535,109380.0,109370.0,0.50095689]
[1749536646243,1.31902535,109380.0,109370.0,0.49455156]
[1749536646472,1.31902535,109380.0,109370.0,0.49455146]
[1749536646671,1.31902535,109380.0,109370.0,0.483876]
[1749536646914,1.31902535,109380.0,109370.0,0.47747067]
[1749536647103,1.31902535,109380.0,109370.0,0.5009573]
[1749536647312,1.31902535,109380.0,109370.0,0.50095767]
[1749536647554,1.31902535,109380.0,109370.0,0.50095862]
[1749536647977,1.31902535,109380.0,109370.0,0.50095876]
[1749536648184,1.31902535,109380.0,109370.0,0.50096128]
[1749536648411,1.31902535,109380.0,109370.0,0.47747067]
[1749536648616,1.31902535,109380.0,109370.0,0.49455505]
[1749536648826,1.31902535,109380.0,109370.0,0.49455511]
[1749536649029,1.31902535,109380.0,109370.0,0.50096177]
[1749536649251,1.30988308,109380.0,109370.0,0.50096177]
[1749536649467,1.30988308,109380.0,109370.0,0.50096232]
[1749536649671,1.30988308,109380.0,109370.0,0.50096379]
[1749536650076,1.30988308,109380.0,109370.0,0.50096396]
[1749536651524,1.30988308,109380.0,109370.0,0.47747067]
[1749536651726,1.30988308,109380.0,109370.0,0.47026883]
[1749536651936,1.30988308,109380.0,109370.0,0.45317927]
[1749536652136,1.30988308,109380.0,109370.0,0.46386028]
[1749536652253,1.30988308,109380.0,109370.0,0.45317929]
[1749536652464,1.30988308,109380.0,109370.0,0.47026894]
[1749536652675,1.30988308,109380.0,109370.0,0.47026945]
[1749536652889,1.30988308,109380.0,109370.0,0.47027083]
[1749536653362,1.30988308,109380.0,109370.0,0.44677067]
[1749536653589,1.30988308,109380.0,109370.0,0.46386178]
[1749536653822,1.30988308,109380.0,109370.0,0.470271]
[1749536654043,1.30988308,109380.0,109370.0,0.46386182]
[1749536654277,1.30988308,109380.0,109370.0,0.470271]
[1749536654490,0.20384878,109380.0,109370.0,0.470271]
[1749536654907,1.21544308,109380.0,109370.0,0.45317985]
[1749536655112,1.21544308,109380.0,109370.0,0.47027134]
[1749536655313,1.21544308,109380.0,109370.0,0.46386209]
[1749536655534,1.30988308,109380.0,109370.0,0.42189067]
[1749536655740,1.30988308,109380.0,109370.0,0.45318008]
[1749536656141,1.30988308,109380.0,109370.0,0.47027333]
[1749536656372,1.30988308,109380.0,109370.0,0.45318049]
[1749536656608,1.33409348,109380.0,109370.0,0.5249778]
[1749536657062,1.33409348,109380.0,109370.0,0.52498026]
[1749536657268,1.33409348,109380.0,109370.0,0.50147395]
[1749536657447,1.33409348,109380.0,109370.0,0.52498107]
[1749536657794,1.33409348,109380.0,109370.0,0.50147395]
[1749536657986,1.33409348,109380.0,109370.0,0.52498107]
[1749536659001,1.33409348,109380.0,109370.0,0.52498109]
[1749536659291,1.33409348,109380.0,109370.0,0.52498104]
[1749536659498,1.33409348,109380.0,109370.0,0.51856946]
[1749536659707,1.33409348,109380.0,109370.0,0.51429569]
[1749536659912,1.33409348,109380.0,109370.0,0.5313921]
[1749536660116,1.36709348,109380.0,109370.0,0.53140296]
[1749536660532,0.35549918,109380.0,109370.0,0.53140364]
[1749536660715,0.35549918,109380.0,109370.0,0.51430631]
[1749536660976,1.36709348,109380.0,109370.0,0.51430639]
[1749536661187,1.36709348,109380.0,109370.0,0.52499396]
[1749536661397,1.36709348,109380.0,109370.0,0.52499412]
[1749536661603,1.36709348,109380.0,109370.0,0.5314067]
[1749536661806,1.35069348,109380.0,109370.0,0.51430658]
[1749536662007,1.35069348,109380.0,109370.0,0.51430678]
[1749536662215,1.35069348,109380.0,109370.0,0.53140746]
[1749536662576,1.33409348,109380.0,109370.0,0.50790849]
[1749536662782,1.33409348,109380.0,109370.0,0.52500922]
[1749536663132,1.33409348,109380.0,109370.0,0.51432133]
[1749536663341,0.32249918,109380.0,109370.0,0.53142448]
[1749536663560,1.33409348,109380.0,109370.0,0.47669829]
[1749536663765,1.33409348,109380.0,109370.0,0.45318149]
[1749536663971,1.33409348,109380.0,109370.0,0.47669854]
[1749536664185,1.33409348,109380.0,109370.0,0.45959523]
[1749536664398,1.33409348,109380.0,109370.0,0.4766985]
[1749536664610,1.33409348,109380.0,109370.0,0.47028602]
[1749536664815,0.32249918,109380.0,109370.0,0.47028706]
[1749536665025,1.33409348,109380.0,109370.0,0.47670254]
[1749536665232,1.33409348,109380.0,109370.0,0.47670292]
[1749536665435,1.33409348,109380.0,109370.0,0.54318212]
[1749536665663,1.33409348,109380.0,109370.0,0.54959706]
[1749536665875,1.33409348,109380.0,109370.0,0.47670294]
[1749536666283,1.33409348,109380.0,109370.0,0.53249055]
[1749536666496,1.33409348,109380.0,109370.0,0.54959637]
[1749536666697,1.33409348,109380.0,109370.0,0.53249242]
[1749536667010,1.33409348,109380.0,109370.0,0.54960392]
[1749536667834,0.32249918,109380.0,109370.0,0.54960392]
[1749536668017,1.33409348,109380.0,109370.0,0.54960392]
[1749536668265,1.33409348,109380.0,109370.0,0.53249259]
[1749536668488,0.32249918,109380.0,109370.0,0.54318773]
[1749536668692,0.82825633,109380.0,109370.0,0.56580454]
[1749536668870,0.82825633,109380.0,109370.0,0.56509254]
[1749536669087,0.82825633,109380.0,109370.0,0.5822032]
[1749536669654,0.82825633,109380.0,109370.0,0.56509217]
[1749536669859,0.82233022,109380.0,109370.0,0.56509217]
[1749536670057,0.82233022,109380.0,109370.0,0.58220256]
[1749536670235,0.82233022,109380.0,109370.0,0.57578612]
[1749536670437,0.82233022,109380.0,109370.0,0.58220512]
[1749536670644,1.32812737,109380.0,109370.0,0.57578797]
[1749536670873,1.32812737,109380.0,109370.0,0.57578796]
[1749536671077,1.31898535,109380.0,109370.0,0.58220509]
[1749536671280,1.31898535,109380.0,109370.0,0.5822048]
[1749536671745,1.31898535,109380.0,109370.0,0.57578767]
[1749536671958,0.30739105,109380.0,109370.0,0.57578651]
[1749536672183,0.80404593,109380.0,109370.0,0.56509226]
[1749536672358,0.80404593,109380.0,109370.0,0.58220288]
[1749536673532,0.80404593,109380.0,109370.0,0.56509213]
[1749536673740,0.80404593,109380.0,109370.0,0.58220308]
[1749536673940,0.80404593,109380.0,109370.0,0.57578656]
[1749536674141,0.80404593,109380.0,109370.0,0.58220311]
[1749536674552,0.29824878,109380.0,109370.0,0.58220311]
[1749536674751,0.80404593,109380.0,109370.0,0.58220311]
[1749536675381,0.80404593,109380.0,109370.0,0.58220337]
[1749536675576,1.14404593,109380.0,109370.0,0.58220347]
[1749536675889,1.04964593,109380.0,109370.0,0.58220341]
[1749536676112,1.04964593,109380.0,109370.0,0.58220319]
[1749536676873,1.04964593,109380.0,109370.0,0.56509222]
[1749536677286,1.04964593,109380.0,109370.0,0.565092]
[1749536677502,1.04964593,109380.0,109370.0,0.55867561]
[1749536677692,1.15318828,109380.0,109370.0,0.5822022]
[1749536677862,1.05878828,109380.0,109370.0,0.5822022]
[1749536678475,1.05878828,109380.0,109370.0,0.58219984]
[1749536678669,0.29702508,109380.0,109370.0,0.58219984]
[1749536678891,0.99481344,109380.0,109370.0,0.58219984]
[1749536679093,0.98567134,109380.0,109370.0,0.67659883]
[1749536679293,0.98567134,109380.0,109370.0,0.67659877]
[1749536679515,0.98567134,109380.0,109370.0,0.67659841]
[1749536679659,0.98567134,109380.0,109370.0,0.6765984]
[1749536680310,0.70693071,109380.0,109370.0,0.6765984]
[1749536680747,0.70693071,109380.0,109370.0,0.67659593]
[1749536680926,0.70693071,109380.0,109370.0,0.67659567]
[1749536681136,0.70693071,109380.0,109370.0,0.67018111]
[1749536681390,0.70693071,109380.0,109370.0,0.67659569]
[1749536681642,0.20113356,109380.0,109370.0,0.67659569]
[1749536681871,0.70693071,109380.0,109370.0,0.65949019]
[1749536682060,1.21272786,109380.0,109370.0,0.78862131]
[1749536682281,1.21272786,109380.0,109370.0,0.72214258]
[1749536682495,1.21272786,109380.0,109370.0,0.72214264]
[1749536682705,1.21272786,109380.0,109370.0,0.57026247]
[1749536682957,1.21272786,109380.0,109370.0,0.58868787]
[1749536683159,0.20113356,109380.0,109370.0,0.59510276]
[1749536683414,1.21272786,109380.0,109370.0,0.59510276]
[1749536683629,1.30712786,109380.0,109370.0,0.59510276]
[1749536683844,0.29553356,109380.0,109370.0,0.64983905]
[1749536684056,1.30712786,109380.0,109370.0,0.63273284]
[1749536684281,1.30712786,109380.0,109370.0,0.61858466]
[1749536684498,1.30712786,109380.0,109370.0,0.62499975]
[1749536684724,1.33782786,109380.0,109370.0,0.61858438]
[1749536684937,1.33782786,109380.0,109370.0,0.64342598]
[1749536685153,1.33782786,109380.0,109370.0,0.63273345]
[1749536685383,1.36203826,109380.0,109370.0,0.64984318]
[1749536685611,1.36203826,109380.0,109370.0,0.6327338]
[1749536685822,1.36203826,109380.0,109370.0,0.64984273]
[1749536686037,1.36203826,109380.0,109370.0,0.64984241]
[1749536686317,1.36203826,109380.0,109370.0,0.62631778]
[1749536686516,1.36203826,109380.0,109370.0,0.64342579]
[1749536686683,1.36203826,109380.0,109370.0,0.64342581]
[1749536687062,1.36203826,109380.0,109370.0,0.6327333]
[1749536687300,1.36203826,109380.0,109370.0,0.64342586]
[1749536687530,1.36203826,109380.0,109370.0,0.64342585]
[1749536687720,1.36203826,109380.0,109370.0,0.6327333]
[1749536687930,1.36203826,109380.0,109370.0,0.64984133]
[1749536688072,1.36203826,109380.0,109370.0,0.64984134]
[1749536688253,1.36203826,109380.0,109370.0,0.62631778]
[1749536688459,1.36203826,109380.0,109370.0,0.63273325]
[1749536688662,0.25604396,109380.0,109370.0,0.62631778]
[1749536688932,0.35044396,109380.0,109370.0,0.59510386]
[1749536689091,1.34663826,109380.0,109370.0,0.59510373]
[1749536689293,1.33133826,109380.0,109370.0,0.59510337]
[1749536689491,1.33133826,109380.0,109370.0,0.59510381]
[1749536689696,1.33133826,109380.0,109370.0,0.57799666]
[1749536690019,0.82554111,109380.0,109370.0,0.59510378]
[1749536690329,0.31974396,109380.0,109370.0,0.57799702]
[1749536690485,0.82554111,109380.0,109370.0,0.58441238]
[1749536690689,0.82554111,109380.0,109370.0,0.60152012]
[1749536690892,0.31974396,109380.0,109370.0,0.48308012]
[1749536691165,0.82554111,109380.0,109370.0,0.46597237]
[1749536691381,0.82554111,109380.0,109370.0,0.48307994]
[1749536691382,0.31974396,109380.0,109370.0,0.48307994]
[1749536691524,0.82554111,109380.0,109370.0,0.4766646]
[1749536691904,0.82554111,109380.0,109370.0,0.48307988]
[1749536692041,0.82554111,109380.0,109370.0,0.555974]
[1749536692678,0.82554111,109380.0,109370.0,0.55597339]
[1749536692882,0.82554111,109380.0,109370.0,0.54955806]
[1749536693151,0.82554111,109380.0,109370.0,0.53886623]
[1749536693328,0.82554111,109380.0,109370.0,0.55597317]
[1749536693529,0.31974396,109380.0,109370.0,0.53245114]
[1749536693754,0.82554111,109380.0,109370.0,0.55597318]
[1749536694315,1.16554111,109380.0,109370.0,0.55597318]
[1749536694517,1.16554111,109380.0,109370.0,0.55597384]
[1749536694728,1.16554111,109380.0,109370.0,0.53886655]
[1749536695068,1.16554111,109380.0,109370.0,0.53245114]
[1749536695274,1.16554111,109380.0,109370.0,0.53886663]
[1749536695446,1.16554111,109380.0,109370.0,0.55597462]
[1749536696026,1.14133071,109380.0,109370.0,0.55597462]
[1749536696232,0.53199121,109380.0,109370.0,0.58145913]
[1749536696417,0.63549339,109380.0,109370.0,0.57076642]
[1749536696630,1.14129054,109380.0,109370.0,0.58145812]
[1749536696929,1.04693054,109380.0,109370.0,0.56435114]
[1749536697335,1.04693054,109380.0,109370.0,0.58787311]
[1749536697564,0.54113339,109380.0,109370.0,0.58787473]
[1749536697715,1.04693054,109380.0,109370.0,0.58787476]
[1749536697925,0.54113339,109380.0,109370.0,0.58787476]
[1749536698125,1.04693054,109380.0,109370.0,0.56435114]
[1749536698332,0.53199121,109380.0,109370.0,0.58787505]
[1749536698511,1.03778836,109380.0,109370.0,0.58145942]
[1749536698771,1.13214836,109380.0,109370.0,0.58145969]
[1749536699003,1.13214836,109380.0,109370.0,0.58145977]
[1749536699358,1.13214836,109380.0,109370.0,0.5559755]
[1749536699593,0.79214836,109380.0,109370.0,0.55597555]
[1749536700015,0.79214836,109380.0,109370.0,0.55597534]
[1749536700229,1.29794551,109380.0,109370.0,0.53886666]
[1749536700437,1.29794551,109380.0,109370.0,0.55597476]
[1749536700438,1.32984551,109380.0,109370.0,0.55597476]
[1749536700946,1.29794551,109380.0,109370.0,0.55597476]
[1749536701351,1.29794551,109380.0,109370.0,0.55597429]
[1749536701563,0.30195121,109380.0,109370.0,0.55597429]
[1749536701771,1.31354551,109380.0,109370.0,0.53245114]
[1749536701980,0.79214836,109380.0,109370.0,0.4830812]
[1749536702186,0.79214836,109380.0,109370.0,0.54955694]
[1749536702402,0.79214836,109380.0,109370.0,0.55597087]
[1749536702891,0.79214836,109380.0,109370.0,0.5559702]
[1749536703299,0.79214836,109380.0,109370.0,0.55597024]
[1749536703547,0.79214836,109380.0,109370.0,0.5559698]
[1749536703735,0.28635121,109380.0,109370.0,0.54955562]
[1749536703939,0.79214836,109380.0,109370.0,0.54955562]
[1749536704098,0.79214836,109380.0,109370.0,0.55596978]
[1749536704506,0.79214836,109380.0,109370.0,0.55596977]
[1749536705130,0.79214836,109380.0,109370.0,0.55596968]
[1749536705338,0.79214836,109380.0,109370.0,0.55596954]
[1749536705542,0.79214836,109380.0,109370.0,0.55596961]
[1749536705743,0.79214836,109380.0,109370.0,0.54955553]
[1749536705942,0.79214836,109380.0,109370.0,0.55597087]
[1749536706423,0.79214836,109380.0,109370.0,0.55597172]
[1749536706807,0.79214836,109380.0,109370.0,0.5388659]
[1749536707026,0.79214836,109380.0,109370.0,0.55597198]
[1749536707359,0.79214836,109380.0,109370.0,0.53886591]
[1749536707776,0.79214836,109380.0,109370.0,0.55597198]
[1749536708156,0.79214836,109380.0,109370.0,0.55597194]
[1749536708359,0.79214836,109380.0,109370.0,0.55601381]
[1749536708768,0.28635121,109380.0,109370.0,0.55601381]
[1749536708975,0.79214836,109380.0,109370.0,0.5560137]
[1749536709178,0.79214836,109380.0,109370.0,0.55601372]
[1749536710014,0.28635121,109380.0,109370.0,0.53890801]
[1749536710230,0.79214836,109380.0,109370.0,0.53249301]
[1749536710430,0.79214836,109380.0,109370.0,0.53890899]
[1749536710634,0.79214836,109380.0,109370.0,0.54960226]
[1749536710837,0.79214836,109380.0,109370.0,0.53890901]
[1749536711040,0.79214836,109380.0,109370.0,0.55601836]
[1749536711297,0.79214836,109380.0,109370.0,0.55601837]
[1749536711477,0.79214836,109380.0,109370.0,0.55601881]
[1749536711683,0.79214836,109380.0,109370.0,0.54960267]
[1749536711902,0.79214836,109380.0,109370.0,0.56277877]
[1749536711903,0.02742579,109380.0,109370.0,0.56277877]
[1749536712115,0.219417,109380.0,109370.0,0.66482911]
[1749536712327,0.219417,109380.0,109370.0,0.6819378]
[1749536712533,0.219417,109380.0,109370.0,0.65841301]
[1749536712748,1.05607247,109380.0,109370.0,0.68193822]
[1749536713531,1.05607247,109380.0,109370.0,0.66482898]
[1749536713722,0.55027516,109380.0,109370.0,0.66482872]
[1749536713979,0.00914193,109380.0,109370.0,1.17072554]
[1749536714192,0.0365679,109380.0,109370.0,1.114936]
[1749536714391,0.02742563,109380.0,109370.0,1.11493599]
[1749536714754,0.02742563,109380.0,109370.0,1.1149364]
[1749536714958,0.03656781,109380.0,109370.0,1.1149364]
[1749536715256,0.03656781,109380.0,109370.0,1.11493646]
[1749536715506,0.02742563,109380.0,109370.0,1.09141604]
[1749536715720,0.03656781,109380.0,109370.0,1.1085229]
[1749536715927,0.03656781,109380.0,109370.0,1.11493811]
[1749536716107,0.02742563,109380.0,109370.0,1.09141604]
[1749536716336,0.03656781,109380.0,109370.0,1.11493815]
[1749536716553,0.03656781,109380.0,109370.0,0.6820867]
[1749536716687,0.02742563,109380.0,109370.0,0.6820867]
[1749536716888,0.02742563,109380.0,109370.0,0.68208344]
[1749536717101,0.0365684,109380.0,109370.0,0.68207475]
[1749536717503,0.54236555,109380.0,109370.0,0.68207484]
[1749536717732,0.54236555,109380.0,109370.0,0.65856459]
[1749536717945,0.54236555,109380.0,109370.0,0.6820751]
[1749536717946,0.0365684,109380.0,109370.0,0.6820751]
[1749536718297,0.0365684,109380.0,109370.0,0.68207511]
[1749536718698,0.0365684,109380.0,109370.0,0.68207213]
[1749536718915,0.0365684,109380.0,109370.0,0.66497767]
[1749536719078,0.0365684,109380.0,109370.0,0.67566697]
[1749536719259,0.0365684,109380.0,109370.0,0.67566719]
[1749536719461,0.03656832,109380.0,109370.0,0.67566719]
[1749536719663,0.54236547,109380.0,109370.0,0.66497813]
[1749536719871,0.54236538,109380.0,109370.0,0.6820809]
[1749536720452,0.55150773,109380.0,109370.0,0.6820809]
[1749536720652,0.55150765,109380.0,109370.0,0.68208099]
[1749536720956,0.55150765,109380.0,109370.0,0.67566754]
[1749536721166,0.03656857,109380.0,109370.0,0.68849519]
[1749536721416,0.54236572,109380.0,109370.0,0.68849521]
[1749536721623,0.54236572,109380.0,109370.0,0.68849529]
[1749536722042,0.55150815,109380.0,109370.0,0.68849284]
[1749536722270,0.54236572,109380.0,109370.0,0.68849318]
[1749536722477,0.54236572,109380.0,109370.0,0.66497829]
[1749536722695,0.55150807,109380.0,109370.0,0.65569169]
[1749536722908,0.55150807,109380.0,109370.0,0.67279455]
[1749536723125,0.55150807,109380.0,109370.0,0.65679455]
[1749536723343,0.55150807,109380.0,109370.0,0.75813181]
[1749536723557,0.55150807,109380.0,109370.0,0.77523366]
[1749536723766,0.04571092,109380.0,109370.0,0.77523366]
[1749536723992,0.55150807,109380.0,109370.0,0.76882014]
[1749536724213,0.50083532,109380.0,109370.0,0.73623886]
[1749536724418,0.6928262,109380.0,109370.0,0.63546575]
[1749536724626,0.6836841,109380.0,109370.0,0.72978575]
[1749536724819,0.6836841,109380.0,109370.0,0.75330048]
[1749536725377,0.6836841,109380.0,109370.0,0.7361987]
[1749536725588,0.6836841,109380.0,109370.0,0.7532999]
[1749536727981,0.6836841,109380.0,109370.0,0.75329876]
[1749536728325,0.6836841,109380.0,109370.0,0.74688614]
[1749536728544,0.6836841,109380.0,109370.0,0.73619839]
[1749536728749,0.6836841,109380.0,109370.0,0.75329878]
[1749536728918,0.68864593,109380.0,109370.0,0.75329878]
[1749536729202,0.71974593,109380.0,109370.0,0.6418784]
[1749536729503,0.71974593,109380.0,109370.0,0.63546575]
[1749536729747,0.71974593,109380.0,109370.0,0.64187841]
[1749536729889,0.68864593,109380.0,109370.0,0.64187839]
[1749536730096,0.68864593,109380.0,109370.0,0.65256612]
[1749536730329,0.68864593,109380.0,109370.0,0.6589787]
[1749536730547,0.68864593,109380.0,109370.0,0.65897865]
[1749536730753,0.68864593,109380.0,109370.0,0.64187832]
[1749536730952,0.18284878,109380.0,109370.0,0.66716575]
[1749536731178,0.68864593,109380.0,109370.0,0.68426592]
[1749536731375,0.68864593,109380.0,109370.0,0.65256597]
[1749536731584,0.68864593,109380.0,109370.0,0.64187832]
[1749536731907,0.68864593,109380.0,109370.0,0.6589785]
[1749536732328,0.68864593,109380.0,109370.0,0.6589784]
[1749536732529,0.68864593,109380.0,109370.0,0.65256671]
[1749536732709,0.68864593,109380.0,109370.0,0.63546575]
[1749536733438,0.68864593,109380.0,109370.0,0.64187861]
[1749536733635,0.68864593,109380.0,109370.0,0.65897958]
[1749536734085,0.70444593,109380.0,109370.0,0.65256681]
[1749536734282,0.70444593,109380.0,109370.0,0.658981]
[1749536734491,0.72084593,109380.0,109370.0,0.63546575]
[1749536734702,0.72084593,109380.0,109370.0,0.65256857]
[1749536734872,0.72084593,109380.0,109370.0,0.65898226]
[1749536735081,0.72084593,109380.0,109370.0,0.65898405]
[1749536735484,0.72084593,109380.0,109370.0,0.64187983]
[1749536735674,0.72084593,109380.0,109370.0,0.64187932]
[1749536735874,1.22664308,109380.0,109370.0,0.63546575]
[1749536736165,1.22664308,109380.0,109370.0,0.65898339]
[1749536736360,1.22664308,109380.0,109370.0,0.6525695]
[1749536736706,1.32096308,109380.0,109370.0,0.6589834]
[1749536736934,1.32096308,109380.0,109370.0,0.6341834]
[1749536737110,1.32096308,109380.0,109370.0,0.64187968]
[1749536737342,1.32096308,109380.0,109370.0,0.64187971]
[1749536737557,1.32096308,109380.0,109370.0,0.63546575]
[1749536737762,1.32096308,109380.0,109370.0,0.25256966]
[1749536737964,1.32096308,109380.0,109370.0,0.25898361]
[1749536738180,1.32096308,109380.0,109370.0,0.25898363]
[1749536738387,1.32096308,109380.0,109370.0,0.63546575]
[1749536738601,1.32096308,109380.0,109370.0,0.65898364]
[1749536738810,0.30936878,109380.0,109370.0,0.63546575]
[1749536739023,0.81516593,109380.0,109370.0,0.63546575]
[1749536739224,0.81516593,109380.0,109370.0,0.65256847]
[1749536739437,0.81516593,109380.0,109370.0,0.63546575]
[1749536739644,0.81516593,109380.0,109370.0,0.64187983]
[1749536739862,0.81516593,109380.0,109370.0,0.65256997]
[1749536740061,0.81516593,109380.0,109370.0,0.65257024]
[1749536740269,0.81516593,109380.0,109370.0,0.64187993]
[1749536740477,0.81516593,109380.0,109370.0,0.65898446]
[1749536740692,0.81516593,109380.0,109370.0,0.64187999]
[1749536740893,0.81516593,109380.0,109370.0,0.65898464]
[1749536741305,0.81516593,109380.0,109370.0,0.54055]
[1749536741509,0.81516593,109380.0,109370.0,0.5341343]
[1749536741740,0.81516593,109380.0,109370.0,0.54054997]
[1749536741944,0.81516593,109380.0,109370.0,0.52344144]
[1749536742359,0.30936878,109380.0,109370.0,0.54054997]
[1749536742577,0.81516593,109380.0,109370.0,0.52344144]